lending/lending_fUSD_20250501
["ID","MTS","AMOUNT","RATE_DAILY","PERIOD"]
[359561590,1746124268259,-1116.58,0.00035616,11]
[359561591,1746124268269,-450.0,0.00035616,11]
[359561592,1746124268278,-1167.28,0.00035616,11]
[359561593,1746124268287,-1494.25,0.00035616,11]
[359561594,1746124268297,-1213.75,0.00035616,11]
[359561595,1746124268306,-569.07183272,0.00035616,11]
[359561596,1746124268316,-450.0,0.00035616,11]
[359561597,1746124268326,-884.62,0.00035616,11]
[359561598,1746124268335,-450.0,0.00035616,11]
[359561599,1746124268345,-508.98959065,0.00035616,11]
[359561600,1746124268355,-450.0,0.00035616,11]
[359561601,1746124268364,-450.0,0.00035616,11]
[359561602,1746124268373,-10360.07,0.00035616,11]
[359561603,1746124268382,-602.6,0.00035616,11]
[359561604,1746124268392,-494.73,0.00035616,11]
[359561605,1746124268402,-1590.92,0.00035616,11]
[359561606,1746124268411,-4063.99,0.00035616,11]
[359561607,1746124268421,-1006.96,0.00035616,11]
[359561608,1746124268430,-450.0,0.00035616,11]
[359561609,1746124268441,-923.1,0.00035616,11]
[359561610,1746124268450,-2932.41,0.00035616,11]
[359561611,1746124268460,-255.51407844,0.00035616,11]
[359561612,1746124268469,-734.73,0.00035616,11]
[359561613,1746124268479,-1117.25,0.00035616,11]
[359561614,1746124268488,-760.9,0.00035616,11]
[359561615,1746124268498,-450.0,0.00035616,11]
[359561616,1746124268508,-450.0,0.00035616,11]
[359561617,1746124268517,-450.0,0.00035616,11]
[359561618,1746124268528,-511.98015276,0.00035616,11]
[359561619,1746124268538,-450.0,0.00035616,11]
[359561620,1746124268548,-929.45,0.00035616,11]
[359561621,1746124268558,-4671.0,0.00035616,11]
[359561622,1746124268567,-504.23488336,0.00035616,11]
[359561623,1746124268577,-450.0,0.00035616,11]
[359561624,1746124268586,-450.0,0.00035616,11]
[359561625,1746124268596,-558.95461082,0.00035616,11]
[359561626,1746124268605,-509.65120947,0.00035616,11]
[359561627,1746124268615,-450.0,0.00035616,11]
[359561628,1746124268624,-913.12,0.00035616,11]
[359561629,1746124268634,-450.0,0.00035616,11]
[359561630,1746124268643,-823.36,0.00035616,11]
[359561631,1746124268654,-450.0,0.00035616,11]
[359561632,1746124268663,-504.03626393,0.00035616,11]
[359561633,1746124268673,-841.74,0.00035616,11]
[359561634,1746124268683,-1180.71,0.00035616,11]
[359561635,1746124268692,-949.2,0.00035616,11]
[359561636,1746124268702,-1934.77,0.00035616,11]
[359561637,1746124268712,-1610.4,0.00035616,11]
[359561638,1746124268721,-1163.62,0.00035616,11]
[359561639,1746124268732,-450.0,0.00035616,11]
[359561640,1746124268741,-450.0,0.00035616,11]
[359561641,1746124268751,-1042.02,0.00035616,11]
[359561642,1746124268761,-1171.59,0.00035616,11]
[359561643,1746124268771,-1044.69,0.00035616,11]
[359561644,1746124268780,-515.48196565,0.00035616,11]
[359561645,1746124268789,-539.65,0.00035616,11]
[359561646,1746124268800,-342.40493683,0.00035616,11]
[359561647,1746124268810,-513.00217537,0.00035616,11]
[359561648,1746124268819,-450.0,0.00035616,11]
[359561649,1746124268829,-450.0,0.00035616,11]
[359561650,1746124268838,-450.0,0.00035616,11]
[359561651,1746124268847,-710.83,0.00035616,11]
[359561652,1746124268857,-11211.68,0.00035616,2]
[359561653,1746124268866,-239.85247425,0.00035616,11]
[359561654,1746124268875,-450.0,0.00035616,11]
[359561655,1746124268885,-535.69,0.00035616,11]
[359561656,1746124268894,-450.0,0.00035616,7]
[359561657,1746124268903,-1674.16,0.00035616,11]
[359561658,1746124268913,-9575.78,0.00035616,11]
[359561659,1746124268922,-527.94,0.00035616,11]
[359561660,1746124268932,-571.62030852,0.00035616,11]
[359561661,1746124268941,-450.0,0.00035616,11]
[359561662,1746124268951,-450.0,0.00035616,11]
[359561663,1746124268961,-450.0,0.00035616,11]
[359561664,1746124268970,-641.1,0.00035616,11]
[359561665,1746124268980,-568.56720711,0.00035616,11]
[359561666,1746124268990,-435.22772073,0.00035616,11]
[359561667,1746124269000,-609.87,0.00035616,11]
[359561668,1746124269009,-450.0,0.00035616,11]
[359561669,1746124269018,-450.0,0.00035616,11]
[359561670,1746124269027,-144312.66,0.00035616,11]
[359561671,1746124269036,-450.0,0.00035616,11]
[359561672,1746124269046,-594.24,0.00035616,11]
[359561673,1746124269055,-3125.49,0.00035616,11]
[359561674,1746124269064,-597.23,0.00035616,11]
[359561675,1746124269073,-450.0,0.00035616,11]
[359561676,1746124269083,-857.37,0.00035616,11]
[359561677,1746124269092,-450.0,0.00035616,11]
[359561678,1746124269101,-551.45112581,0.00035616,11]
[359561679,1746124269110,-450.0,0.00035616,11]
[359561680,1746124269122,-175.18769984,0.00035616,11]
[359561681,1746124269700,-693.97230016,0.00035616,11]
[359561682,1746124269711,-874.63,0.00035616,11]
[359561683,1746124269720,-363.39769984,0.00035616,11]
[359561684,1746124269740,-86.60230016,0.00035616,11]
[359561685,1746124269750,-613.2,0.00035616,11]
[359561686,1746124269759,-450.0,0.00035616,11]
[359561687,1746124269769,-885.62580336,0.00035616,11]
[359561688,1746124269780,-445.4360035,0.00035616,11]
[359561711,1746124913015,150.0,0.00032867,60]
[359561722,1746125168681,250.0,0.00017,2]
[359561723,1746125169407,300.0,0.00019,2]
[359561724,1746125209081,-350.0,0.00021,2]
[359561725,1746125209102,-150.0,0.00021917,2]
[359561726,1746125209123,-150.0,0.00023287,2]
[359561727,1746125209143,-207.4,0.00023446,2]
[359561728,1746125209164,-878.0,0.00024367,2]
[359561729,1746125209184,-264.6,0.00024367,2]
[359561743,1746125432038,-207.4,0.00023446,2]
[359561744,1746125432048,-481.13502753,0.00024367,2]
[359561745,1746125432060,-542.26497247,0.00024367,2]
[359561746,1746125432070,-797.0,0.00024367,2]
[359561747,1746125432079,-1448.0,0.00024367,2]
[359561748,1746125432089,-910.324,0.00024367,2]
[359561749,1746125432099,-549.0,0.00024367,2]
[359561750,1746125432109,-333.214,0.00024367,2]
[359561751,1746125432118,-2666.094,0.00024367,2]
[359561752,1746125432128,-967.90986585,0.00024367,2]
[359561753,1746125432223,-1739.16,0.00024367,2]
[359561760,1746125438235,-1295.93013415,0.00024367,2]
[359561761,1746125438247,-534.44309757,0.00024367,2]
[359561762,1746125438290,-343.55690243,0.00024367,2]
[359561763,1746125438300,-1138.0,0.00024367,2]
[359561764,1746125438311,-173.8,0.00024657,2]
[359561765,1746125438322,-215.0738,0.00024815,2]
[359561767,1746125438332,-223.0315306,0.00026184,2]
[359561768,1746125438343,-4003.0,0.00027367,2]
[359561769,1746125438353,-878.0,0.00027367,2]
[359561770,1746125438364,-1138.0,0.00027367,2]
[359561771,1746125438374,-1000.0,0.00027397,2]
[359561772,1746125438384,-231.28369723,0.00027553,2]
[359561773,1746125438395,-239.84119403,0.00028922,2]
[359561774,1746125438406,-455.93,0.00029908,2]
[359561775,1746125438415,-1416.29,0.0003,2]
[359561776,1746125438426,-248.71531821,0.00030291,2]
[359561777,1746125438436,-3817.187,0.00030367,2]
[359561778,1746125438445,-878.0,0.00030367,2]
[359561780,1746125438455,-1138.0,0.00030367,2]
[359561781,1746125438464,-625.84,0.00031214,2]
[359561783,1746125438475,-257.91778498,0.0003166,2]
[359561786,1746125438486,-1058.25713748,0.0003221,2]
[359561787,1746125438497,-1072.22040469,0.00032219,5]
[359561789,1746125438506,-422.0,0.000324,2]
[359561791,1746125438516,-662.0,0.000324,2]
[359561793,1746125438526,-662.0,0.000324,2]
[359561795,1746125438536,-150.0,0.00032622,2]
[359561797,1746125438546,-156.87,0.00032627,2]
[359561799,1746125438556,-176.16,0.00032642,2]
[359561801,1746125438565,-250.0,0.00032666,2]
[359561803,1746125438575,-158.04,0.00032875,30]
[359561805,1746125438584,-176.59,0.00032877,30]
[359561807,1746125438594,-231.0,0.00032877,2]
[359561809,1746125438603,-1000.0,0.00032948,2]
[359561811,1746125438613,-462.2,0.00033024,2]
[359561813,1746125438622,-300.0,0.00033024,2]
[359561815,1746125438632,-267.46074303,0.00033029,2]
[359561817,1746125438645,-693.714,0.00033029,34]
[359561819,1746125438655,-23900.0,0.00033095,2]
[359561821,1746125438664,-1000.0,0.00033165,2]
[359561823,1746125438674,-878.0,0.00033367,2]
[359561825,1746125438684,-235.244,0.00033367,2]
[359561827,1746125438693,-625.84,0.00033478,2]
[359561829,1746125438703,-150.0,0.00033494,2]
[359561831,1746125438712,-1073.833126,0.00033835,4]
[359561833,1746125438724,-153.38,0.00034015,2]
[359561836,1746125438734,-176.16,0.00034274,2]
[359561838,1746125438743,-150.0,0.00034365,2]
[359561839,1746125438753,-290.916756,0.00034371,120]
[359561841,1746125438763,-277.35679052,0.00034398,2]
[359561843,1746125438772,-1077.22177712,0.00034904,5]
[359561845,1746125438781,-1138.05782471,0.00034904,5]
[359561847,1746125438791,-239.98598388,0.00034922,60]
[359561849,1746125438800,-1534.57092,0.00035,11]
[359561851,1746125438809,-153.38,0.00035137,2]
[359561853,1746125438819,-150.0,0.00035237,2]
[359561855,1746125438829,-150.0,0.00035342,2]
[359561857,1746125438838,-150.0,0.00035342,2]
[359561859,1746125438848,-30000.0,0.000355,2]
[359561861,1746125438857,-177.52336655,0.00035506,2]
[359561863,1746125438866,-252.44104385,0.00035506,15]
[359561865,1746125438877,-166.79723274,0.00035506,2]
[359561867,1746125438886,-2017.4762,0.00035516,4]
[359561869,1746125438896,-167.60596592,0.00035516,2]
[359561871,1746125438906,-52243.442849,0.00035596,2]
[359561873,1746125438915,-154.62,0.00035596,2]
[359561875,1746125438925,-250.45,0.00035596,2]
[359561877,1746125438937,-1456.6468673,0.000356,11]
[359561879,1746125438946,-52243.442849,0.00035603,2]
[359561881,1746125438955,-213.0,0.00035605,2]
[359561883,1746125438965,-500.0,0.00035605,7]
[359561885,1746125438975,-500.0,0.00035605,7]
[359561887,1746125438985,-165.69407437,0.00035605,7]
[359561889,1746125438994,-500.0,0.00035605,7]
[359561891,1746125439004,-540.93644821,0.00035605,7]
[359561893,1746125439014,-227.26231743,0.00035605,7]
[359561895,1746125439024,-482286.30104236,0.00035606,2]
[359561916,1746125439213,-14026.40602364,0.00035606,2]
[359561918,1746125439224,-108890.741076,0.00035606,2]
[359561920,1746125439233,-107259.73333153,0.00035606,2]
[359562012,1746125440155,-357.34684656,0.00035606,2]
[359562014,1746125440166,-3121.8680359,0.00035606,2]
[359562016,1746125440178,-394.20200095,0.00035606,2]
[359562019,1746125440189,-11834.525775,0.00035606,2]
[359562024,1746125440231,-35219.78202106,0.00035606,2]
[359562026,1746125440240,-3717.7449175,0.00035606,2]
[359562028,1746125440249,-379.9882661,0.00035606,2]
[359562030,1746125440259,-8653.3816027,0.00035613,2]
[359562032,1746125440268,-521.0,0.00035616,5]
[359562033,1746125440277,-1246.97,0.00035616,5]
[359562035,1746125440287,-259.70082501,0.00035616,2]
[359562037,1746125440296,-229.18430392,0.00035616,11]
[359562039,1746125440306,-450.0,0.00035616,11]
[359562041,1746125440315,-450.0,0.00035616,5]
[359562043,1746125440324,-448.64373736,0.00035616,11]
[359562045,1746125440333,-450.0,0.00035616,2]
[359562047,1746125440343,-591.70867382,0.00035616,11]
[359562049,1746125440351,-450.0,0.00035616,11]
[359562051,1746125440361,-247.29195361,0.00035616,11]
[359562053,1746125440371,-450.0,0.00035616,11]
[359562055,1746125440380,-450.0,0.00035616,11]
[359562057,1746125440390,-450.0,0.00035616,11]
[359562059,1746125440399,-450.0,0.00035616,11]
[359562061,1746125440408,-450.0,0.00035616,11]
[359562063,1746125440418,-523.99659686,0.00035616,11]
[359562065,1746125440427,-450.0,0.00035616,11]
[359562067,1746125440436,-159.25681685,0.00035616,11]
[359562069,1746125440445,-450.0,0.00035616,11]
[359562071,1746125440455,-450.0,0.00035616,11]
[359562073,1746125440464,-450.0,0.00035616,5]
[359562075,1746125440473,-569.54676714,0.00035616,11]
[359562077,1746125440483,-523.1806734,0.00035616,11]
[359562079,1746125440492,-450.0,0.00035616,11]
[359562081,1746125440502,-450.0,0.00035616,11]
[359562083,1746125440511,-200.0,0.00035616,2]
[359562085,1746125440520,-450.0,0.00035616,11]
[359562087,1746125440530,-450.0,0.00035616,11]
[359562089,1746125440540,-450.0,0.00035616,11]
[359562091,1746125440549,-450.0,0.00035616,11]
[359562093,1746125440559,-450.0,0.00035616,11]
[359562095,1746125440568,-450.0,0.00035616,11]
[359562097,1746125440578,-450.0,0.00035616,11]
[359562099,1746125440587,-570.84536218,0.00035616,11]
[359562101,1746125440597,-450.0,0.00035616,11]
[359562103,1746125440606,-450.0,0.00035616,11]
[359562105,1746125440616,-450.0,0.00035616,11]
[359562107,1746125440625,-574.75301982,0.00035616,11]
[359562109,1746125440636,-450.0,0.00035616,11]
[359562111,1746125440649,-450.0,0.00035616,11]
[359562113,1746125440658,-541.4667408,0.00035616,11]
[359562115,1746125440667,-450.0,0.00035616,11]
[359562117,1746125440676,-900.85,0.00035616,11]
[359562119,1746125440686,-450.0,0.00035616,11]
[359562121,1746125440696,-450.0,0.00035616,11]
[359562123,1746125440706,-569.91561985,0.00035616,11]
[359562125,1746125440716,-450.0,0.00035616,11]
[359562127,1746125440726,-450.0,0.00035616,11]
[359562129,1746125440735,-155.65590983,0.00035616,11]
[359562131,1746125440745,-561.85532943,0.00035616,11]
[359562133,1746125440754,-450.0,0.00035616,11]
[359562135,1746125440764,-450.0,0.00035616,11]
[359562137,1746125440773,-450.0,0.00035616,11]
[359562139,1746125440783,-450.0,0.00035616,11]
[359562141,1746125440793,-450.0,0.00035616,11]
[359562143,1746125440804,-450.0,0.00035616,11]
[359562145,1746125440813,-450.0,0.00035616,11]
[359562147,1746125440823,-450.0,0.00035616,11]
[359562149,1746125440833,-450.0,0.00035616,11]
[359562151,1746125440842,-450.0,0.00035616,11]
[359562153,1746125440851,-450.0,0.00035616,11]
[359562155,1746125440861,-555.90254403,0.00035616,11]
[359562157,1746125440870,-830.96,0.00035616,11]
[359562159,1746125440879,-450.0,0.00035616,11]
[359562161,1746125440889,-219.5533083,0.00035616,11]
[359562162,1746125440898,-450.0,0.00035616,11]
[359562164,1746125440907,-704.76,0.00035616,11]
[359562166,1746125440916,-450.0,0.00035616,11]
[359562168,1746125440926,-450.0,0.00035616,11]
[359562170,1746125440935,-450.0,0.00035616,11]
[359562172,1746125440944,-450.0,0.00035616,11]
[359562174,1746125440953,-450.0,0.00035616,11]
[359562176,1746125440963,-450.0,0.00035616,11]
[359562178,1746125440972,-450.0,0.00035616,11]
[359562180,1746125440981,-450.0,0.00035616,11]
[359562182,1746125440991,-450.0,0.00035616,11]
[359562184,1746125441000,-450.0,0.00035616,11]
[359562186,1746125441010,-450.0,0.00035616,11]
[359562188,1746125441019,-450.0,0.00035616,11]
[359562190,1746125441029,-450.0,0.00035616,11]
[359562192,1746125441038,-450.0,0.00035616,11]
[359562194,1746125441047,-450.0,0.00035616,11]
[359562196,1746125441057,-450.0,0.00035616,11]
[359562198,1746125441066,-450.0,0.00035616,11]
[359562200,1746125441076,-450.0,0.00035616,11]
[359562202,1746125441086,-450.0,0.00035616,11]
[359562204,1746125441095,-595.31,0.00035616,11]
[359562206,1746125441105,-450.0,0.00035616,11]
[359562208,1746125441114,-568.13715795,0.00035616,11]
[359562210,1746125441124,-450.0,0.00035616,11]
[359562212,1746125441133,-466.38,0.00035616,11]
[359562214,1746125441142,-624.49,0.00035616,11]
[359562216,1746125441151,-450.0,0.00035616,11]
[359562218,1746125441160,-450.0,0.00035616,11]
[359562220,1746125441170,-450.0,0.00035616,11]
[359562222,1746125441183,-450.0,0.00035616,11]
[359562225,1746125441193,-450.0,0.00035616,11]
[359562227,1746125441204,-450.0,0.00035616,11]
[359562229,1746125441215,-450.0,0.00035616,11]
[359562231,1746125441226,-450.0,0.00035616,11]
[359562233,1746125441236,-450.0,0.00035616,11]
[359562235,1746125441246,-450.0,0.00035616,11]
[359562237,1746125441257,-550.02739365,0.00035616,11]
[359562239,1746125441266,-450.0,0.00035616,11]
[359562241,1746125441275,-591.35751775,0.00035616,11]
[359562243,1746125441284,-1130.51,0.00035616,11]
[359562245,1746125441295,-450.0,0.00035616,11]
[359562247,1746125441304,-450.0,0.00035616,11]
[359562249,1746125441313,-450.0,0.00035616,11]
[359562251,1746125441323,-450.0,0.00035616,11]
[359562253,1746125441334,-450.0,0.00035616,11]
[359562255,1746125441344,-450.0,0.00035616,11]
[359562257,1746125441354,-450.0,0.00035616,11]
[359562259,1746125441364,-450.0,0.00035616,11]
[359562261,1746125441373,-450.0,0.00035616,11]
[359562263,1746125441382,-450.0,0.00035616,11]
[359562265,1746125441392,-450.0,0.00035616,11]
[359562267,1746125441401,-450.0,0.00035616,11]
[359562269,1746125441411,-450.0,0.00035616,11]
[359562271,1746125441420,-450.0,0.00035616,11]
[359562273,1746125441429,-1000.0,0.00035616,11]
[359562275,1746125441439,-450.0,0.00035616,11]
[359562277,1746125441448,-450.0,0.00035616,11]
[359562279,1746125441458,-450.0,0.00035616,11]
[359562281,1746125441468,-450.0,0.00035616,11]
[359562283,1746125441477,-450.0,0.00035616,11]
[359562285,1746125441487,-969.87,0.00035616,11]
[359562287,1746125441496,-450.0,0.00035616,11]
[359562289,1746125441506,-450.0,0.00035616,11]
[359562291,1746125441515,-450.0,0.00035616,11]
[359562293,1746125441525,-563.05767693,0.00035616,11]
[359562295,1746125441535,-896.46,0.00035616,11]
[359562297,1746125441544,-450.0,0.00035616,11]
[359562299,1746125441553,-450.0,0.00035616,11]
[359562301,1746125441563,-450.0,0.00035616,11]
[359562304,1746125441572,-450.0,0.00035616,11]
[359562306,1746125441581,-450.0,0.00035616,11]
[359562308,1746125441591,-308.95037888,0.00035616,11]
[359562309,1746125441600,-450.0,0.00035616,11]
[359562312,1746125441609,-450.0,0.00035616,11]
[359562313,1746125441618,-305.1664252,0.00035616,11]
[359562316,1746125441628,-494.73,0.00035616,11]
[359562318,1746125441639,-450.0,0.00035616,11]
[359562320,1746125441651,-450.0,0.00035616,11]
[359562322,1746125441661,-450.0,0.00035616,11]
[359562324,1746125441671,-596.06659042,0.00035616,11]
[359562326,1746125441680,-450.0,0.00035616,11]
[359562328,1746125441690,-450.0,0.00035616,11]
[359562329,1746125441700,-450.0,0.00035616,11]
[359562332,1746125441709,-552.28712309,0.00035616,11]
[359562334,1746125441720,-450.0,0.00035616,11]
[359562336,1746125441730,-450.0,0.00035616,11]
[359562338,1746125441739,-450.0,0.00035616,11]
[359562340,1746125441749,-450.0,0.00035616,11]
[359562342,1746125441759,-450.0,0.00035616,11]
[359562344,1746125441768,-450.0,0.00035616,11]
[359562345,1746125441777,-450.0,0.00035616,11]
[359562347,1746125441786,-450.0,0.00035616,11]
[359562349,1746125441796,-450.0,0.00035616,11]
[359562352,1746125441806,-450.0,0.00035616,11]
[359562353,1746125441815,-450.0,0.00035616,11]
[359562355,1746125441825,-450.0,0.00035616,11]
[359562356,1746125441835,-450.0,0.00035616,11]
[359562357,1746125441845,-822.41,0.00035616,11]
[359562358,1746125441855,-625.72,0.00035616,11]
[359562359,1746125441865,-450.0,0.00035616,11]
[359562360,1746125441875,-450.0,0.00035616,11]
[359562361,1746125441885,-450.0,0.00035616,11]
[359562362,1746125441895,-450.0,0.00035616,11]
[359562363,1746125441905,-450.0,0.00035616,11]
[359562364,1746125441915,-450.0,0.00035616,11]
[359562365,1746125441925,-819.4,0.00035616,11]
[359562366,1746125441935,-450.0,0.00035616,11]
[359562367,1746125441946,-450.0,0.00035616,11]
[359562368,1746125441957,-450.0,0.00035616,11]
[359562369,1746125441968,-450.0,0.00035616,11]
[359562370,1746125441979,-450.0,0.00035616,11]
[359562371,1746125441989,-450.0,0.00035616,11]
[359562372,1746125441999,-450.0,0.00035616,11]
[359562373,1746125442009,-450.0,0.00035616,11]
[359562374,1746125442019,-450.0,0.00035616,11]
[359562376,1746125442029,-918.49,0.00035616,11]
[359562378,1746125442039,-470.52,0.00035616,11]
[359562380,1746125442049,-450.0,0.00035616,11]
[359562382,1746125442059,-450.0,0.00035616,11]
[359562384,1746125442068,-450.0,0.00035616,11]
[359562386,1746125442078,-450.0,0.00035616,11]
[359562388,1746125442088,-450.0,0.00035616,11]
[359562390,1746125442098,-450.0,0.00035616,11]
[359562392,1746125442107,-450.0,0.00035616,11]
[359562394,1746125442116,-450.0,0.00035616,11]
[359562396,1746125442126,-450.0,0.00035616,11]
[359562398,1746125442136,-450.0,0.00035616,11]
[359562400,1746125442145,-450.0,0.00035616,11]
[359562402,1746125442154,-450.0,0.00035616,11]
[359562404,1746125442164,-450.0,0.00035616,11]
[359562406,1746125442175,-609.59,0.00035616,11]
[359562408,1746125442184,-450.0,0.00035616,11]
[359562410,1746125442194,-450.0,0.00035616,11]
[359562412,1746125442204,-450.0,0.00035616,11]
[359562414,1746125442214,-703.07,0.00035616,11]
[359562416,1746125442223,-450.0,0.00035616,11]
[359562418,1746125442233,-450.0,0.00035616,11]
[359562420,1746125442243,-1790.74,0.00035616,2]
[359562422,1746125442252,-836.47,0.00035616,11]
[359562424,1746125442266,-450.0,0.00035616,11]
[359562426,1746125442276,-450.0,0.00035616,11]
[359562428,1746125442286,-221.93517456,0.00035616,11]
[359562430,1746125442296,-461.2,0.00035616,11]
[359562432,1746125442306,-579.78326704,0.00035616,11]
[359562434,1746125442316,-592.39,0.00035616,11]
[359562436,1746125442325,-450.0,0.00035616,11]
[359562438,1746125442335,-500.88,0.00035616,11]
[359562440,1746125442345,-450.0,0.00035616,11]
[359562441,1746125442355,-450.0,0.00035616,11]
[359562442,1746125442364,-450.0,0.00035616,11]
[359562443,1746125442374,-450.0,0.00035616,11]
[359562444,1746125442384,-450.0,0.00035616,11]
[359562445,1746125442394,-450.0,0.00035616,11]
[359562446,1746125442403,-450.0,0.00035616,11]
[359562447,1746125442414,-565.53550363,0.00035616,11]
[359562448,1746125442424,-450.0,0.00035616,11]
[359562449,1746125442434,-450.0,0.00035616,11]
[359562450,1746125442445,-450.0,0.00035616,11]
[359562451,1746125442455,-450.0,0.00035616,11]
[359562452,1746125442465,-450.0,0.00035616,11]
[359562453,1746125442475,-450.0,0.00035616,11]
[359562454,1746125442487,-450.0,0.00035616,11]
[359562455,1746125442497,-2290.75,0.00035616,11]
[359562456,1746125442507,-450.0,0.00035616,11]
[359562457,1746125442516,-450.0,0.00035616,11]
[359562458,1746125442527,-450.0,0.00035616,11]
[359562459,1746125442538,-450.0,0.00035616,11]
[359562460,1746125442548,-450.0,0.00035616,11]
[359562461,1746125442558,-450.0,0.00035616,11]
[359562462,1746125442568,-450.0,0.00035616,11]
[359562463,1746125442578,-450.0,0.00035616,11]
[359562464,1746125442588,-570.3025899,0.00035616,11]
[359562465,1746125442598,-550.0,0.00035616,11]
[359562466,1746125442607,-450.0,0.00035616,11]
[359562467,1746125442617,-726.24,0.00035616,11]
[359562468,1746125442627,-450.0,0.00035616,11]
[359562469,1746125442638,-450.0,0.00035616,11]
[359562470,1746125442649,-450.0,0.00035616,11]
[359562471,1746125442658,-561.83099112,0.00035616,11]
[359562472,1746125442669,-517.26932974,0.00035616,11]
[359562473,1746125442679,-450.0,0.00035616,11]
[359562474,1746125442689,-450.0,0.00035616,11]
[359562475,1746125442699,-181.32233256,0.00035616,11]
[359562477,1746125442708,-450.0,0.00035616,11]
[359562478,1746125442719,-465.69,0.00035616,11]
[359562479,1746125442730,-508.73442163,0.00035616,11]
[359562480,1746125442740,-726.51,0.00035616,11]
[359562481,1746125442750,-450.0,0.00035616,11]
[359562482,1746125442760,-708.84,0.00035616,11]
[359562483,1746125442771,-300.9449016,0.00035616,11]
[359562484,1746125442780,-698.24,0.00035616,11]
[359562485,1746125442790,-450.0,0.00035616,11]
[359562486,1746125442800,-585.41369514,0.00035616,11]
[359562487,1746125442810,-450.0,0.00035616,11]
[359562488,1746125442819,-265.84265754,0.00035616,11]
[359562489,1746125442829,-450.0,0.00035616,11]
[359562490,1746125442839,-450.0,0.00035616,11]
[359562491,1746125442849,-965.57,0.00035616,11]
[359562492,1746125442859,-467.95,0.00035616,11]
[359562493,1746125442870,-574.67190794,0.00035616,11]
[359562494,1746125442879,-450.0,0.00035616,11]
[359562495,1746125442891,-450.0,0.00035616,11]
[359562496,1746125442902,-450.0,0.00035616,11]
[359562497,1746125442912,-200.0,0.00035616,2]
[359562498,1746125442923,-450.0,0.00035616,11]
[359562499,1746125442935,-450.0,0.00035616,11]
[359562500,1746125442945,-450.0,0.00035616,11]
[359562501,1746125442956,-450.0,0.00035616,11]
[359562502,1746125442967,-660.72,0.00035616,11]
[359562504,1746125442977,-450.0,0.00035616,11]
[359562505,1746125442987,-450.0,0.00035616,11]
[359562506,1746125442996,-450.0,0.00035616,11]
[359562507,1746125443006,-450.0,0.00035616,11]
[359562509,1746125443016,-450.0,0.00035616,11]
[359562510,1746125443025,-450.0,0.00035616,11]
[359562511,1746125443035,-450.0,0.00035616,11]
[359562512,1746125443044,-450.0,0.00035616,11]
[359562513,1746125443054,-450.0,0.00035616,11]
[359562515,1746125443063,-504.61,0.00035616,11]
[359562516,1746125443073,-187.44093984,0.00035616,11]
[359562517,1746125443082,-1335.14,0.00035616,11]
[359562518,1746125443093,-500.0,0.00035616,11]
[359562519,1746125443102,-450.0,0.00035616,11]
[359562520,1746125443112,-500.0,0.00035616,11]
[359562521,1746125443122,-500.0,0.00035616,11]
[359562522,1746125443131,-500.0,0.00035616,11]